[Event "Veteran-SM 65+ 2025"]
[Site "Uppsala, Sweden"]
[Date "2025.07.06"]
[Round "9.6"]
[White "Olsson, Torgny"]
[Black "Dolata, Henryk"]
[Result "0-1"]
[TimeControl "90 min for 40 move + 30 min with an increment of 30 sec starting move 1"]
[WhiteFideId "1717340"]
[BlackFideId "1709046"]
[WhiteElo "1907"]
[BlackElo "1958"]

1. d4 {[%clk 01:30:43]} {[%emt 00:00:17]} d5 {[%clk 01:29:48]} {[%emt
00:01:13]} 2. Bf4 {[%clk 01:30:47]} {[%emt 00:00:26]} Nf6 {[%clk 01:29:48]}
{[%emt 00:00:30]} 3. e3 {[%clk 01:31:03]} {[%emt 00:00:14]} e6 {[%clk
01:27:43]} {[%emt 00:02:35]} 4. Nd2 {[%clk 01:29:42]} {[%emt 00:01:51]} Bd6
{[%clk 01:27:14]} {[%emt 00:00:59]} 5. Bg3 {[%clk 01:29:41]} {[%emt 00:00:30]}
Bxg3 {[%clk 01:17:15]} {[%emt 00:10:30]} 6. hxg3 {[%clk 01:29:47]} {[%emt
00:00:23]} e5 {[%clk 01:16:14]} {[%emt 00:01:31]} 7. dxe5 {[%clk 01:15:33]}
{[%emt 00:14:44]} Ng4 {[%clk 01:16:17]} {[%emt 00:00:26]} 8. Ngf3 {[%clk
01:14:08]} {[%emt 00:01:56]} Nd7 {[%clk 01:15:18]} {[%emt 00:01:30]} 9. c3
{[%clk 01:11:56]} {[%emt 00:02:43]} Ndxe5 {[%clk 01:13:45]} {[%emt 00:02:01]}
10. Nxe5 {[%clk 01:05:23]} {[%emt 00:07:03]} Nxe5 {[%clk 01:14:08]} {[%emt
00:00:07]} 11. Nf3 {[%clk 01:01:24]} {[%emt 00:04:29]} Ng4 {[%clk 01:12:08]}
{[%emt 00:02:31]} 12. Qc2 {[%clk 01:00:30]} {[%emt 00:01:23]} Nf6 {[%clk
01:09:08]} {[%emt 00:03:30]} 13. O-O-O {[%clk 00:55:18]} {[%emt 00:05:41]} Qe7
{[%clk 01:09:11]} {[%emt 00:00:27]} 14. Bd3 {[%clk 00:54:53]} {[%emt 00:00:56]}
h6 {[%clk 00:58:29]} {[%emt 00:11:13]} 15. Rde1 {[%clk 00:53:23]} {[%emt
00:02:00]} Be6 {[%clk 00:54:06]} {[%emt 00:04:53]} 16. Nd4 {[%clk 00:50:29]}
{[%emt 00:03:24]} O-O-O {[%clk 00:44:23]} {[%emt 00:10:13]} 17. Qa4 {[%clk
00:48:51]} {[%emt 00:02:06]} Kb8 {[%clk 00:42:18]} {[%emt 00:02:37]} 18. Qb3
{[%clk 00:41:01]} {[%emt 00:08:19]} Rd6 {[%clk 00:35:20]} {[%emt 00:07:29]} 19.
Qa3 {[%clk 00:28:57]} {[%emt 00:12:33]} Qd7 {[%clk 00:32:16]} {[%emt 00:03:34]}
20. b4 {[%clk 00:19:28]} {[%emt 00:10:00]} Rb6 {[%clk 00:23:49]} {[%emt
00:08:57]} 21. Kc2 {[%clk 00:16:52]} {[%emt 00:03:04]} Ng4 {[%clk 00:19:17]}
{[%emt 00:05:04]} 22. Re2 {[%clk 00:16:24]} {[%emt 00:00:57]} Rc8 {[%clk
00:18:02]} {[%emt 00:01:46]} 23. Rd2 {[%clk 00:15:45]} {[%emt 00:01:08]} Ne5
{[%clk 00:17:39]} {[%emt 00:00:53]} 24. Be2 {[%clk 00:14:37]} {[%emt 00:01:37]}
Bf5+ {[%clk 00:15:32]} {[%emt 00:02:38]} 25. Kc1 {[%clk 00:14:24]} {[%emt
00:00:42]} c5 {[%clk 00:14:58]} {[%emt 00:01:06]} 26. Nxf5 {[%clk 00:13:11]}
{[%emt 00:01:43]} cxb4 {[%clk 00:14:45]} {[%emt 00:00:44]} 27. Qa5 {[%clk
00:12:43]} {[%emt 00:00:56]} Rxc3+ {[%clk 00:13:29]} {[%emt 00:01:46]} 28. Kb2
{[%clk 00:12:01]} {[%emt 00:01:12]} Qxf5 {[%clk 00:13:02]} {[%emt 00:00:57]} 29.
Qxd5 {[%clk 00:11:06]} {[%emt 00:01:24]} Qf6 {[%clk 00:08:18]} {[%emt
00:05:15]} 30. Qd8+ {[%clk 00:07:30]} {[%emt 00:04:06]} Qxd8 {[%clk 00:08:47]}
{[%emt 00:00:02]} 31. Rxd8+ {[%clk 00:07:45]} {[%emt 00:00:15]} Kc7 {[%clk
00:09:12]} {[%emt 00:00:05]} 32. Rhd1 {[%clk 00:07:32]} {[%emt 00:00:43]} Rbc6
{[%clk 00:08:40]} {[%emt 00:01:02]} 33. R8d2 {[%clk 00:07:12]} {[%emt
00:00:50]} Kb6 {[%clk 00:08:02]} {[%emt 00:01:08]} 34. f4 {[%clk 00:06:29]}
{[%emt 00:01:12]} Nc4+ {[%clk 00:06:09]} {[%emt 00:02:24]} 35. Bxc4 {[%clk
00:06:48]} {[%emt 00:00:10]} R6xc4 {[%clk 00:06:11]} {[%emt 00:00:28]} 36. Rd7
{[%clk 00:05:41]} {[%emt 00:01:38]} Rc7 {[%clk 00:04:47]} {[%emt 00:01:54]} 37.
Rxc7 {[%clk 00:03:21]} {[%emt 00:02:50]} Kxc7 {[%clk 00:04:19]} {[%emt
00:00:58]} 38. Rc1 {[%clk 00:02:34]} {[%emt 00:01:16]} Rxc1 {[%clk 00:04:19]}
{[%emt 00:00:30]} 39. Kxc1 {[%clk 00:02:58]} {[%emt 00:00:06]} f5 {[%clk
00:04:15]} {[%emt 00:00:35]} 40. Kc2 {[%clk 00:03:13]} {[%emt 00:00:14]} Kd6
{[%clk 00:03:50]} {[%emt 00:01:43]} 0-1

[Event "Veteran-SM 65+ 2025"]
[Site "Uppsala, Sweden"]
[Date "2025.07.06"]
[Round "9.8"]
[White "Vrabec, Josip"]
[Black "Haggvik, Kjell"]
[Result "1/2-1/2"]
[TimeControl "90 min for 40 move + 30 min with an increment of 30 sec starting move 1"]
[WhiteFideId "1714953"]
[BlackFideId "1776495"]
[WhiteElo "1908"]
[BlackElo "1932"]

1. e4 {[%clk 01:30:56]} {[%emt 00:00:04]} Nf6 {[%clk 01:30:56]} {[%emt
00:00:05]} 2. Nc3 {[%clk 01:31:05]} {[%emt 00:00:21]} d5 {[%clk 01:31:19]}
{[%emt 00:00:08]} 3. exd5 {[%clk 01:31:20]} {[%emt 00:00:14]} Nxd5 {[%clk
01:31:43]} 4. Nxd5 Qxd5 {[%clk 01:32:09]} 5. d4 {[%clk 01:31:41]} {[%emt
00:00:20]} Bf5 {[%clk 01:32:17]} {[%emt 00:00:23]} 6. Nf3 {[%clk 01:31:57]}
{[%emt 00:00:14]} e6 {[%clk 01:32:34]} {[%emt 00:00:14]} 7. Bd3 {[%clk
01:32:15]} {[%emt 00:00:10]} Bxd3 {[%clk 01:32:34]} {[%emt 00:00:31]} 8. Qxd3
{[%clk 01:32:43]} {[%emt 00:00:01]} Be7 {[%clk 01:32:50]} {[%emt 00:00:14]} 9.
O-O {[%clk 01:32:59]} {[%emt 00:00:15]} O-O {[%clk 01:33:15]} {[%emt 00:00:05]}
10. c4 {[%clk 01:32:55]} {[%emt 00:00:33]} Qd8 {[%clk 01:33:28]} {[%emt
00:00:18]} 11. Bf4 {[%clk 01:32:55]} {[%emt 00:00:29]} 1/2-1/2